Cogmind - Beta 15 @@@ ROGUE MODE // 2025.09.21 @ 22:36:26 Player: Hermonite Result: Destroyed by G-47 Trooper with Particle Gun Performance ------------- Evolutions (1) 500 Regions Visited (2) 400 Robots Destroyed (29) 145 Value Destroyed (686) 686 Prototype IDs (2) 40 Alien Tech Used (0) 0 Bonus (0) 0 TOTAL SCORE: 1771 Bonus ------- None Cogmind --------- Core Integrity 0/400 Matter 300/300 Energy 100/100 System Corruption 0% Temperature Cool (9) Movement Core (150) Ox2 Location -9/Materials Parts ------- > --- POWER (2) -------- (None) > --- PROPULSION (2) --- (None) > --- UTILITY (2) ------ Small Storage Unit Targeting Computer > --- WEAPON (3) ------- Hammer > --- INVENTORY (8) ---- Large Matter Pod (133) Structural Scanner Peak State ------------ > --- POWER ------------ Heavy Ion Engine Light Nuclear Core > --- PROPULSION ------- Wheel Wheel > --- UTILITY ---------- Small Storage Unit Shield Generator > --- WEAPON ----------- Improved EM Shotgun Assault Rifle Light Cannon > --- INVENTORY -------- Large Matter Pod Targeting Computer Assault Rifle Hammer [Rating: 16] Favorites ----------- Power Light Ion Engine Engine Light Ion Engine Power Core Light Nuclear Core Propulsion Wheel Treads Light Treads Leg Aluminum Leg Wheel Wheel Utility Small Storage Unit Device Heat Sink Storage Small Storage Unit Processor Targeting Computer Protection Power Shielding Weapon Assault Rifle Energy Gun EM Pulse Gun Ballistic Gun Assault Rifle Ballistic Cannon Light Cannon Launcher Grenade Launcher Special Weapon Mining Laser Impact Weapon Hammer Build | -11 -10 -9 ------- Run | Yrd Mat Mat Slots Evolved 2 | . . 2 Power 1 | . . 1 Propulsion . | . . . Utility . | . . . Weapon 1 | . . 1 Parts Attached 34 | 8 7 19 Power 5 | 1 1 3 Engine 4 | 1 1 2 Core 1 | . . 1 Reactor . | . . . Propulsion 9 | 3 1 5 Treads 1 | . . 1 Leg 2 | 1 1 . Wheel 6 | 2 . 4 Hover . | . . . Flight . | . . . Utility 7 | 1 4 2 Device 3 | 1 1 1 Storage 1 | . 1 . Processor 2 | . 1 1 Hackware . | . . . Protection 1 | . 1 . Artifact . | . . . Weapon 13 | 3 1 9 Energy Gun 5 | 2 1 2 Energy Cannon . | . . . Ballistic Gun 3 | 1 . 2 Ballistic Cannon 1 | . . 1 Launcher 1 | . . 1 Special Weapon 2 | . . 2 Impact Weapon 1 | . . 1 Slashing Weapon . | . . . Piercing Weapon . | . . . Special Melee Weapon . | . . . Unidentified Prototypes 2 | . . 2 Parts Lost 19 | . 1 18 Power 4 | . . 4 Propulsion 6 | . 1 5 Utility 1 | . . 1 Weapon 8 | . . 8 Highest Loss Streak 9 | . 1 9 To Critical Strikes . | . . . Average Backups 4 | 2 3 4 Power . | . . . Propulsion . | 1 . . Utility 1 | . . 2 Weapon 2 | . 3 1 Tool/Special . | . . . Unused Backups 7 | . 3 4 Power . | . . . Propulsion 1 | . 1 . Utility 4 | . . 4 Weapon 1 | . 1 . Tool/Special 1 | . 1 . Average Slot Usage (%) 83 | . 85 82 Engine 13 | . 14 12 Core 2 | . . 4 Treads 1 | . . 1 Leg 6 | . 10 3 Wheel 7 | . 5 9 Device 4 | . 9 1 Storage 8 | . 6 11 Processor 1 | . . 2 Protection 8 | . 11 5 Energy Gun 13 | . 17 10 Ballistic Gun 10 | . 11 10 Ballistic Cannon 1 | . . 3 Launcher 1 | . . 2 Special Weapon 1 | . . 3 Peak Build Rating 16 | 6 7 16 Average Rating 8 | 3 6 10 On Entrance 4 | . 6 6 Naked Turns . | . . . Heaviest Build 28 | 8 13 28 Greatest Support 26 | 20 10 26 Greatest Overweight (x) 6 | . 2 6 Average Overweight (x) . | . . . Largest Inventory Capacity 8 | 5 8 8 Average Capacity 7 | 5 6 8 Most Carried 7 | 5 6 7 Average Carried 4 | 2 3 4 Final Capacity 8 | 5 8 8 Final Carried 5 | 4 5 2 Class Distribution -------------------- 57% | Mutant 31% | Tank 11% | Gunner Dominant Class ---------------- Mutant | -10/Materials Tank | -9/Materials Resources | -11 -10 -9 ----------- Run | Yrd Mat Mat Matter Collected 1016 | 300 91 625 Remotely . | . . . Salvage Created 923 | 50 187 686 Parts 48 | 3 7 38 Haulers Intercepted . | . . . Recyclers Shooed 1 | . . 1 Parts Field Recycled . | . . . Retrieved Matter . | . . . Parts Self-Destructed . | . . . Prevented . | . . . Kills | -11 -10 -9 ------- Run | Yrd Mat Mat Combat Hostiles Destroyed 20 | 1 6 13 Melee 1 | . . 1 Guns 14 | 1 6 7 Cannons 4 | . . 4 AOE 1 | . . 1 Classes Destroyed 7 | 1 2 4 Worker 2 | . . 2 Builder 1 | . . 1 Recycler 3 | . . 3 Watcher 3 | . 1 2 Swarmer 6 | . 3 3 Grunt 10 | 1 3 6 Sentry 4 | . . 4 Best Kill Streak 9 | 1 4 9 Combat Bots Only 6 | 1 4 6 Max Kills in Single Turn 3 | 1 1 3 Gunslinging . | . . . Exploded 1 | . . 1 Melee 1 | . . 1 Uniques/NPCs Destroyed . | . . . Combat | -11 -10 -9 -------- Run | Yrd Mat Mat Hostile Shots Fired 240 | 6 41 193 Missed 78 | 3 13 62 Hits 162 | 3 28 131 Melee 6 | . . 6 Projectile 156 | 3 28 125 Critical Strikes 5 | . . 5 Damage Taken 2033 | 32 271 1730 Core 482 | 11 58 413 Absorbed by Shields 49 | . . 49 Redirected to Shielding 38 | . 6 32 Core Remaining (%) 83 | 95 72 . Volleys Fired 85 | 5 18 62 Largest 3 | 2 2 3 Hottest 100 | 60 60 100 Shots Fired 181 | 10 36 135 Gun 145 | 10 36 99 Cannon 22 | . . 22 Launcher 8 | . . 8 Special 6 | . . 6 Kinetic 105 | 5 18 82 Thermal 29 | . . 29 Explosive 8 | . . 8 Electromagnetic 39 | 5 18 16 Robot Hit Streak 18 | 2 9 18 Robot Miss Streak 3 | 3 2 3 Penetration Max . | . . . Secondary Targets 2 | . 1 1 Max Gunslinging Chain 1 | . 1 1 Shots Hit Robots 121 | 4 24 93 Core Hits 47 | 2 9 36 Critical Kills . | . . . Critical Parts Destroyed 1 | . . 1 Critical Strikes 2 | . . 2 Destroy 1 | . . 1 Blast 1 | . . 1 Melee Attacks 5 | . . 5 Impact 5 | . . 5 Slashing . | . . . Piercing . | . . . Sneak Attacks . | . . . Combat Hostiles . | . . . Follow-up Attacks . | . . . Damage Inflicted 2003 | 51 311 1641 Guns 1212 | 51 309 852 Cannons 306 | . . 306 Explosions 334 | . . 334 Melee 139 | . . 139 Ramming 3 | . 2 1 Kinetic 931 | 26 143 762 Thermal 207 | . . 207 Explosive 334 | . . 334 Electromagnetic 389 | 25 166 198 Impact 139 | . . 139 Slashing . | . . . Piercing . | . . . Highest Corruption . | . . . Average Corruption . | . . . Corruption Purged . | . . . Corruption Blocked . | . . . Overload Shots . | . . . Overflow Damage 25 | . . 25 Projectiles . | . . . Explosions 12 | . . 12 Melee 13 | . . 13 Knockbacks 5 | . . 5 Impact 1 | . . 1 Kinetic 3 | . . 3 Secondary 1 | . . 1 Self-Inflicted Damage 61 | . . 61 Shots 4 | . . 4 Rammed . | . . . Targets Rammed 2 | . 1 1 Kicked 2 | . 1 1 Crushed . | . . . Highest Temperature 280 | 18 2 280 Average Temperature 95 | 14 2 101 Received Heat Transfer 782 | 18 96 668 Effects 2 | . . 2 Energy Bleed 2 | . . 2 Siege Activations . | . . . Martial Activations . | . . . Shielding Activations . | . . . Robots Disrupted . | . . . Combat Hostiles . | . . . Robots Corrupted . | . . . Combat Hostiles . | . . . Parts Fried 1 | . . 1 Impact Corruptions 1 | . . 1 Robots Melted . | . . . Combat Hostiles . | . . . Parts Melted . | . . . Heat Transferred 525 | . . 525 Parts Sabotaged . | . . . Parts Stolen . | . . . Parts Stripped . | . . . Power Chain Reactions . | . . . Alert | -11 -10 -9 ------- Run | Yrd Mat Mat Maximum Alert Level 1 | . . 1 Low Security (%) 93 | 100 100 87 Level 1 6 | . . 12 Level 2 . | . . . Level 3 . | . . . Level 4 . | . . . Level 5 . | . . . High Security . | . . . Max Security . | . . . Peak Influence 227 | 20 73 227 Initial 13 | . 13 . Average 37 | 2 12 60 Influence Increases 668 | 20 147 501 Destroy 0b10 Robot/C 400 | 20 120 260 Destroy 0b10 Robot/NC 45 | . 5 40 Destroy Leader 96 | . 22 74 Successful Hack 8 | . . 8 Disable Machine 30 | . . 30 Destroy Structure 59 | . . 59 Partial Spotted 15 | . . 15 Lose Combat Pursuer 15 | . . 15 Influence Decreases 654 | . 167 487 Entered New Map 7 | . 7 . Time Decay 371 | . 150 221 Lost Part 85 | . 10 75 Purge Threat 191 | . . 191 Squads Dispatched 2 | . 1 1 Investigation 1 | . 1 . Extermination . | . . . Reinforcement 1 | . . 1 Assault . | . . . Garrison . | . . . Intercept . | . . . Searches Triggered . | . . . Construction Impeded 1 | . . 1 Haulers Reinforced . | . . . Active Scanning Responses . | . . . Cargo Convoy Interrupts . | . . . Stealth | -11 -10 -9 --------- Run | Yrd Mat Mat Distress Signals 1 | . . 1 Communications Jammed . | . . . Distress Signals . | . . . Times Spotted 36 | 1 10 25 Peak Tracking Total 8 | 1 5 8 Tactical Retreats 1 | . . 1 Traps | -11 -10 -9 ------- Run | Yrd Mat Mat Traps Triggered . | . . . Indirectly . | . . . Trap Hack Attempts . | . . . Triggered . | . . . Disarmed . | . . . Reprogrammed . | . . . Reused . | . . . Traps Extracted . | . . . Installed . | . . . Triggered . | . . . Machines | -11 -10 -9 ---------- Run | Yrd Mat Mat Machines Disabled 2 | . . 2 Max in Single Turn 2 | . . 2 Machines Repaired . | . . . Machines Dismantled . | . . . Machines Sabotaged . | . . . Overloaded Fab Kills . | . . . Hacking | -11 -10 -9 --------- Run | Yrd Mat Mat Machines Accessed 7 | . 3 4 Terminals 6 | . 2 4 Fabricators . | . . . Repair Stations . | . . . Recycling Units 1 | . 1 . Scanalyzers . | . . . Garrison Access . | . . . Total Hacks 22 | . 9 13 Successful 17 | . 7 10 Failed 5 | . 2 3 Catastrophic . | . . . Database Lockouts . | . . . Manual . | . . . Terminals 18 | . 5 13 Fabricators . | . . . Repair Stations . | . . . Recycling Units 4 | . 4 . Scanalyzers . | . . . Garrison Access . | . . . Terminal Hacks 13 | . 3 10 Record 7 | . 1 6 Alert Level 2 | . 1 1 Unreport Threat 2 | . . 2 Locate Traps 2 | . 1 1 Fabricator Hacks . | . . . Repair Station Hacks . | . . . Recycling Unit Hacks 4 | . 4 . Recycle Component 2 | . 2 . Process 1 | . 1 . Retrieve Matter 1 | . 1 . Scanalyzer . | . . . Garrison Access Hacks . | . . . Unauthorized Hacks . | . . . Terminals . | . . . Fabricators . | . . . Repair Stations . | . . . Recycling Units . | . . . Scanalyzers . | . . . Garrison Access . | . . . Data Cores Recovered . | . . . Used . | . . . Hacking Detections 6 | . 3 3 Full Trace Events 3 | . 2 1 Feedback Events . | . . . Feedback Blocked . | . . . Robot Schematics Acquired . | . . . Robots Built . | . . . Authchips . | . . . Time . | . . . Total Robot Build Rating . | . . . Part Schematics Acquired . | . . . Parts Built . | . . . Authchips . | . . . Time . | . . . Total Part Build Rating . | . . . Parts Repaired . | . . . Time . | . . . Parts Recycled 2 | . 2 . Recycled Matter 33 | . 33 . Retrieved Matter 33 | . 33 . Retrieved Components . | . . . Parts Scanalyzed . | . . . Part Schematics Acquired . | . . . Parts Damaged . | . . . Bothacking | -11 -10 -9 ------------ Run | Yrd Mat Mat Used RIF Installer . | . . . Robots Hacked . | . . . Non-combat . | . . . Combat . | . . . Robot Hacks Applied . | . . . Relay Couplers Released . | . . . Fabnet Peak Effective % . | . . . Robots Rewired . | . . . Allies Hacked . | . . . Hacks Repelled . | . . . Allies | -11 -10 -9 -------- Run | Yrd Mat Mat Total Allies . | . . . Largest Group . | . . . Highest-Rated Group . | . . . Highest-Rated Ally . | . . . Total Orders . | . . . Ally Attacks . | . . . Total Damage . | . . . Kills . | . . . Allies Corrupted . | . . . Allies Melted . | . . . Intel | -11 -10 -9 ------- Run | Yrd Mat Mat Active Infowar (turns) 1 | . 1 . Optics 1 | . 1 . Robot Analysis Total . | . . . Derelict Logs Recovered . | . . . Drone Launches . | . . . Drone Recoveries . | . . . Exploration | -11 -10 -9 ------------- Run | Yrd Mat Mat Turns Passed 1659 | 99 692 868 Spaces Moved 976 | 92 418 466 Core 91 | 29 48 14 Treads 49 | . . 49 Legs 418 | . 316 102 Wheels 418 | 63 54 301 Hover . | . . . Flight . | . . . Fastest Speed 50 | 50 80 80 Average Speed 133 | 70 144 135 Slowest Speed 350 | 80 190 350 Overloaded Moves . | . . . Propulsion Burnouts . | . . . Robots Hopped . | . . . Potential Cave-ins . | . . . Cave-ins Triggered . | . . . Exploration Rate (%) 34 | 8 64 30 Regions Visited 2 Branch Regions . Pre-discovered Areas . | . . . Known Exits Taken . | . . . Unknown Exits Taken 2 | 1 1 . Scrap Searched . | . . . Spaces Dug . | . . . Terrain Destroyed 62 | . . 62 Melee . | . . . Projectile . | . . . AOE 62 | . . 62 Terrain Rammed . | . . . Walls Destroyed . | . . . Machines Disabled . | . . . Actions | -11 -10 -9 --------- Run | Yrd Mat Mat Total 1162 | 113 472 577 Wait . | . . . Move 974 | 91 417 466 Hop . | . . . Pick Up 39 | 8 13 18 Fast Attach 2 | 2 . . Attach 25 | 4 5 16 Detach 3 | . 3 . Swap 13 | 3 7 3 Drop 14 | . 8 6 Fire 85 | 5 18 62 Melee 5 | . . 5 Ram . | . . . Kick 2 | . 1 1 Crush . | . . . Escape Stasis . | . . . Rewire . | . . . Trap . | . . . Miscellaneous . | . . . Route ------- -11/Scrapyard -10/Materials (discovered 4 exits: *Mat x2 / [*Min x2]) -9/Materials (discovered 1 exit: [*Mat]) History --------- Turn | Location | Event 2 | -11/Scrapyard | Met Revision 17 72 | -11/Scrapyard | Discovered new exit (range 8) 100 | -11/Scrapyard | Entered Materials 100 | -10/Materials | Discovered new exit (range 8) 311 | -10/Materials | Build established: Mutant 378 | -10/Materials | Discovered new exit (range 8) 589 | -10/Materials | Discovered new exit (range 10) 747 | -10/Materials | Discovered new exit (range 10) 792 | -10/Materials | Entered another Materials area 792 | -9/Materials | Evolved 2 slots: Power x1, Weapon x1 1062 | -9/Materials | Lost 4 parts (1p1n2w) 1421 | -9/Materials | Lost 3 parts (1n1u1w) 1476 | -9/Materials | Discovered new exit (range 5) 1601 | -9/Materials | Core integrity fell below 50% 1637 | -9/Materials | Core integrity fell below 20% 1660 | -9/Materials | Destroyed by G-47 Trooper with Particle Gun Last Messages --------------- Bump into an enemy to attack with the active melee weapon. Even while active, melee weapons do not fire together with ranged weapons in the same volley. 01620_ Acquired 50 matter. 01633_ R-06 Scavenger collects Lgt. Treads. 01633_ Wheel destroyed. 01636_ R-06 Scavenger collects Heat Sink. 01639_ Welding Torch destroyed. 01641_ R-06 Scavenger collects Aluminum Leg. 01641_ Critical hit (Burn: +37). 01643_ Com. Wheel destroyed. 01643_ Destroyed Sml. Laser. 01643_ G-34 Mercenary system corrupted by crushing effect. 01643_ Heat Sink fried. 01643_ G-34 Mercenary destroyed. 01644_ R-06 Scavenger collects Beam Rifle. 01646_ Acquired 31 matter. 01658_ G-47 Trooper knocked back. Map ----- +----------------------------------------------------+ | | | | | | | | | | | | | | | | | | | | | | | | | | | | | | | | | | | | | | | | | | | ###?????########????###########????????????????? | | #?????# """ #????# #????????????????? | | #?????# "Y" #????# #????????????????? | | #?????# #????# #????????????????? | | #?????# #????# @ g #????????????????? | | ###?????# #########;##/###????????????????? | | ????????# + ##????????????????? | | ############+######### % +????????????????? | | #????#+#+## ##????????????????? | | ############### #?????? ## #?????????????????? | | ######????????# #?????? ## #?????????????????? | | #????????# #????? # ?????????????????? | | [#???###### #????? # ????????????????? | | #???# #???? # ???????????????? | | #???# #???? # ##+??????????????? | | "T" #???# #???#######+###? ?????????????? | | #???# #???????????????? ?????????????? | | #+######## #????????????????? ????????????? | | #####?????????????? ???????????? | | ??????????????? ???????????? | | ####???????????????????????????????? | | ## ##### ##??????????????????????????????????? | | ## #???# #???????????????????????????????????? | | ## #???# #???????????????????????????????????? | | ## #???# #???????????????????????????????????? | | # #####+######??????????????????????????????? | | ## ## #??????????????????????????????? | | ## ## #??????????????????????????????? | | # # """ """ #??????????????????????????????? | +----------------------------------------------------+ Best States ------------- Heat Dissipation 45 Energy Generation 23 Energy Capacity 340 Matter Stores 300 Matter Capacity 300 Sight Range 16 Terrain Scan Density 10 Power Shielding 33 Evasion (%) 55 Targeting Accuracy 5 Recoil Reduction 1 Item Schematics ----------------- None Robot Schematics ------------------ None Fabricated ------------ Nothing Repaired ---------- Nothing Alien Tech Used ----------------- None Achievements -------------- Everything Is Under Control Let's See Who's Tougher Challenges ------------ None Game ------ Seed ThermicAblativeDerivative Manual? 0 Play Time 00:28:01 Cumulative 2.3 hours Start 2025.09.21 @ 22:08:01 End 2025.09.21 @ 22:36:26 Sessions 1 Manual Loads 0 Difficulty Rogue Special Mode None Game No. 3 Rogue 3 Adventurer 0 Explorer 0 Win Type - Total 0 Types 0/0/0/0/0/0/0/0/0/0 Lore% 2 Gallery% 5 Achievement% 7 Wizard Run 0 Options --------- Layout 1 ASCII 0 Keyboard 0 Movement Mouse Keybinds 0 Fullscreen 1 Font 32/SmallcapsGlow Map View 50x35 Zoom Use 0% Tactical HUD 1 Map Filters NONE Filters NONE Steam 1 RUN: 8c5ef960-7647-4991-ac24-aab283f0663c